Cogmind - Beta 11.1 @@@ ROGUE MODE // 2022.05.28 @ 21:57:05 Player: Jezoensis Result: Self-destructed Performance ------------- Evolutions (2) 1000 Regions Visited (5) 1000 Robots Destroyed (64) 320 Value Destroyed (1187) 1187 Prototype IDs (31) 620 Alien Tech Used (0) 0 Bonus (322) 322 TOTAL SCORE: 4449 Bonus ------- High Alert Combat Kills 22 Aligned with FarCom 300 Cogmind --------- Core Integrity 502/550 Matter 280/300 Energy 280/280 System Corruption 0% Temperature Cool (0) Movement Treading (170) Location -8/Materials Parts ------- > --- POWER (1) -------- Heavy Ion Engine > --- PROPULSION (3) --- Armored Treads Armored Treads Armored Treads > --- UTILITY (4) ------ High-capacity Storage Unit Improved Terrain Scanner Terrain Scan Processor Salvage Targeting Computer > --- WEAPON (3) ------- Minigun Minigun Gauss Rifle > --- INVENTORY (20) --- Heavy Ion Engine Armored Treads Armored Treads Armored Treads Compact Matter Pod (150) Advanced Visual Processing Unit Improved Sensor Array Improved Signal Interpreter Long-range Tractor Beam Chronowheel Precision Beam Rifle Minigun AWS/Gauss XL Autogun Array Improved Grenade Launcher Katana Peak State ------------ > --- POWER ------------ Heavy Ion Engine > --- PROPULSION ------- Armored Treads Armored Treads Armored Treads > --- UTILITY ---------- Improved Heat Sink High-capacity Storage Unit Terrain Scan Processor Salvage Targeting Computer > --- WEAPON ----------- Precision Beam Rifle Minigun Minigun > --- INVENTORY -------- Heavy Ion Engine Armored Treads Armored Treads Armored Treads Armored Treads Improved Sensor Array Improved Signal Interpreter Improved Terrain Scanner Long-range Tractor Beam Chronowheel Precision Beam Rifle Heavy Assault Rifle AWS/Gauss XL Autogun Array Mini Grenade Launcher Mining Laser [Rating: 40] Favorites ----------- Power Heavy Ion Engine Engine Heavy Ion Engine Propulsion Armored Treads Treads Armored Treads Wheel Wheel Utility Improved Terrain Scanner Device Improved Terrain Scanner Storage High-capacity Storage Unit Processor Terrain Scan Processor Weapon Minigun Energy Gun Precision Beam Rifle Ballistic Gun Minigun Launcher Mini Grenade Launcher Special Weapon Mining Laser Build | -11 -10 -10 -10 -9 -8 ------- Run | Scr Mat Min Exi Min Mat Slots Evolved 4 | . . . . . 4 Power . | . . . . . . Propulsion 1 | . . . . . 1 Utility 2 | . . . . . 2 Weapon 1 | . . . . . 1 Parts Attached 68 | 7 8 2 2 5 44 Power 3 | 1 2 . . . . Engine 3 | 1 2 . . . . Core . | . . . . . . Reactor . | . . . . . . Propulsion 12 | 2 2 . . . 8 Treads 7 | . . . . . 7 Leg . | . . . . . . Wheel 5 | 2 2 . . . 1 Hover . | . . . . . . Flight . | . . . . . . Utility 26 | 2 2 1 1 3 17 Device 19 | 1 . 1 . 2 15 Storage 4 | 1 2 . 1 . . Processor 3 | . . . . 1 2 Hackware . | . . . . . . Protection . | . . . . . . Artifact . | . . . . . . Weapon 27 | 2 2 1 1 2 19 Energy Gun 3 | . . . . . 3 Energy Cannon . | . . . . . . Ballistic Gun 17 | 2 1 1 1 2 10 Ballistic Cannon . | . . . . . . Launcher 2 | . . . . . 2 Special Weapon 5 | . 1 . . . 4 Impact Weapon . | . . . . . . Slashing Weapon . | . . . . . . Piercing Weapon . | . . . . . . Special Melee Weapon . | . . . . . . Unidentified Prototypes 2 | . 1 . . . 1 Parts Lost 1 | . . . . 1 . Power . | . . . . . . Propulsion . | . . . . . . Utility 1 | . . . . 1 . Weapon . | . . . . . . Highest Loss Streak 1 | . . . . 1 . To Critical Strikes . | . . . . . . Average Slot Usage (%) 99 | . 100 100 100 94 99 Engine 10 | . 14 14 14 14 9 Treads 16 | . . . . . 26 Wheel 10 | . 28 28 28 28 . Device 10 | . 14 14 14 8 9 Storage 10 | . 14 14 14 14 9 Processor 11 | . . . . . 18 Energy Gun 2 | . . . . . 3 Ballistic Gun 24 | . 27 28 28 28 22 Naked Turns . | . . . . . . Heaviest Build 59 | 14 32 35 54 56 59 Greatest Support 60 | 20 20 20 20 20 60 Greatest Overweight (x) 2 | . 1 1 2 2 1 Average Overweight (x) . | . . 1 1 2 . Largest Inventory Capacity 20 | 8 15 15 20 20 20 Average Capacity 17 | 6 10 15 15 20 20 Most Carried 20 | 6 11 15 16 20 20 Average Carried 16 | 3 8 12 15 19 19 Final Capacity 20 | 8 15 15 20 20 20 Final Carried 20 | 6 11 15 16 20 20 Class Distribution -------------------- 54% | Skirmisher 39% | Mutant 5% | Scavenger-Skirmisher Dominant Class ---------------- Mutant | -10/Materials Mutant | -10/Mines Mutant | -10/Exiles Mutant | -9/Mines Skirmisher | -8/Materials Resources | -11 -10 -10 -10 -9 -8 ----------- Run | Scr Mat Min Exi Min Mat Matter Collected 1868 | 177 297 66 . 100 1228 Remotely 248 | . . . . . 248 Salvage Created 2052 | 19 283 41 . 29 1680 Parts 133 | 4 26 6 . 4 93 Haulers Intercepted 7 | . 2 . . . 5 Recyclers Shooed 3 | . . . . 1 2 Parts Field Recycled . | . . . . . . Retrieved Matter . | . . . . . . Parts Self-Destructed . | . . . . . . Prevented . | . . . . . . Kills | -11 -10 -10 -10 -9 -8 ------- Run | Scr Mat Min Exi Min Mat Combat Hostiles Destroyed 33 | . 9 . . . 24 Guns 29 | . 9 . . . 20 AOE 4 | . . . . . 4 Classes Destroyed 12 | 1 2 1 . 1 7 Worker 4 | . . 1 . . 3 Builder 4 | . . . . 1 3 Tunneler 7 | 1 2 1 . 1 2 Hauler 7 | . 2 . . . 5 Recycler 5 | . . . . . 5 Mechanic 1 | . . . . . 1 Watcher 3 | . . . . . 3 Swarmer 16 | . 9 . . . 7 Grunt 11 | . . . . . 11 Duelist 1 | . . . . . 1 Sentry 4 | . . . . . 4 Hunter 1 | . . . . . 1 Best Kill Streak 6 | 1 3 1 . 1 6 Combat Bots Only 3 | . 3 . . . 3 Max Kills in Single Turn 3 | 1 1 1 . 1 3 Gunslinging 1 | . . . . . 1 Exploded 2 | . . . . . 2 Melee . | . . . . . . Uniques/NPCs Destroyed . | . . . . . . Combat | -11 -10 -10 -10 -9 -8 -------- Run | Scr Mat Min Exi Min Mat Damage Taken 988 | . 326 . . 17 645 Core 110 | . 62 . . . 48 Absorbed by Shields . | . . . . . . Core Remaining (%) 87 | 100 . . . 75 . Volleys Fired 131 | 4 35 3 . 7 82 Largest 3 | 2 2 2 . 2 3 Hottest 111 | 40 100 53 . 46 111 Shots Fired 316 | 8 69 6 . 13 220 Gun 301 | 8 68 6 . 13 206 Cannon . | . . . . . . Launcher 6 | . . . . . 6 Special 9 | . 1 . . . 8 Kinetic 269 | 8 68 6 . 13 174 Thermal 41 | . 1 . . . 40 Explosive 6 | . . . . . 6 Electromagnetic . | . . . . . . Robot Hit Streak 10 | 1 7 1 . 5 10 Robot Miss Streak 6 | 1 6 6 . 2 4 Penetration Max 1 | . . . . . 1 Secondary Targets 5 | . 4 . . . 1 Max Gunslinging Chain 1 | . 1 . . . 1 Shots Hit Robots 175 | 4 39 2 . 8 122 Core Hits 89 | 1 18 2 . 2 66 Critical Kills . | . . . . . . Critical Parts Destroyed 1 | . . . . 1 . Critical Strikes 4 | . . . . 1 3 Burn 2 | . . . . . 2 Destroy 2 | . . . . 1 1 Melee Attacks . | . . . . . . Impact . | . . . . . . Slashing . | . . . . . . Piercing . | . . . . . . Sneak Attacks . | . . . . . . Combat Hostiles . | . . . . . . Follow-up Attacks . | . . . . . . Damage Inflicted 3411 | 47 413 33 . 149 2769 Guns 2684 | 47 413 33 . 115 2076 Cannons . | . . . . . . Explosions 594 | . . . . . 594 Melee . | . . . . . . Ramming 133 | . . . . 34 99 Kinetic 2211 | 47 413 33 . 115 1603 Thermal 473 | . . . . . 473 Explosive 594 | . . . . . 594 Electromagnetic . | . . . . . . Impact . | . . . . . . Slashing . | . . . . . . Piercing . | . . . . . . Highest Corruption 4 | . . . . 4 . Average Corruption 4 | . . . . 4 . Corruption Purged . | . . . . . . Corruption Blocked . | . . . . . . Effects 3 | . . . . 3 . Message Errors 1 | . . . . 1 . Energy Discharges 1 | . . . . 1 . Data Loss (major) 1 | . . . . 1 . Overload Shots . | . . . . . . Overflow Damage 28 | . . . . 19 9 Projectiles . | . . . . . . Explosions . | . . . . . . Melee 28 | . . . . 19 9 Knockbacks . | . . . . . . Impact . | . . . . . . Kinetic . | . . . . . . Secondary . | . . . . . . Self-Inflicted Damage 17 | . . . . 17 . Shots . | . . . . . . Rammed 5 | . . . . 1 4 Targets Rammed 8 | . . . . 1 7 Kicked . | . . . . . . Crushed 3 | . . . . . 3 Highest Temperature 150 | . 20 . . . 150 Average Temperature 42 | . 7 . . . 44 Received Heat Transfer 288 | . . . . . 288 Siege Activations . | . . . . . . Robots Corrupted . | . . . . . . Combat Hostiles . | . . . . . . Parts Fried 3 | . . . . . 3 Impact Corruptions 3 | . . . . 1 2 Robots Melted . | . . . . . . Combat Hostiles . | . . . . . . Parts Melted 2 | . . . . . 2 Heat Transferred 1147 | . . . . . 1147 Parts Sabotaged . | . . . . . . Parts Stolen . | . . . . . . Parts Stripped . | . . . . . . Power Chain Reactions . | . . . . . . Missiles Intercepted . | . . . . . . Alert | -11 -10 -10 -10 -9 -8 ------- Run | Scr Mat Min Exi Min Mat Peak Influence 442 | 5 311 67 . 25 442 Initial 54 | . 3 54 . . 9 Average 186 | 1 176 59 . 2 227 Maximum Alert Level 2 | . 1 . . . 2 Low Security (%) 51 | 100 64 100 . 100 36 Level 1 45 | . 35 . . . 58 Level 2 3 | . . . . . 5 Level 3 . | . . . . . . Level 4 . | . . . . . . Level 5 . | . . . . . . High Security . | . . . . . . Max Security . | . . . . . . Squads Dispatched 10 | . 4 . . . 6 Investigation 2 | . 2 . . . . Extermination . | . . . . . . Reinforcement 8 | . 2 . . . 6 Assault . | . . . . . . Garrison . | . . . . . . Intercept . | . . . . . . Searches Triggered . | . . . . . . Construction Impeded 1 | . . . . . 1 Haulers Reinforced . | . . . . . . Active Scanning Responses . | . . . . . . Cargo Convoy Interrupts . | . . . . . . Stealth | -11 -10 -10 -10 -9 -8 --------- Run | Scr Mat Min Exi Min Mat Distress Signals 9 | . . . . 1 8 Communications Jammed . | . . . . . . Distress Signals . | . . . . . . Times Spotted 57 | . 16 . . 2 39 Peak Tracking Total 6 | . 6 . . 2 6 Tactical Retreats 7 | . 2 . . 1 4 Traps | -11 -10 -10 -10 -9 -8 ------- Run | Scr Mat Min Exi Min Mat Traps Triggered 3 | . 2 . . . 1 Indirectly . | . . . . . . Trap Hack Attempts . | . . . . . . Triggered . | . . . . . . Disarmed . | . . . . . . Reprogrammed . | . . . . . . Reused . | . . . . . . Traps Extracted . | . . . . . . Installed . | . . . . . . Triggered . | . . . . . . Most Traps Carried 2 | . . 2 2 . . Machines | -11 -10 -10 -10 -9 -8 ---------- Run | Scr Mat Min Exi Min Mat Machines Disabled 2 | . . . . . 2 Max in Single Turn 1 | . . . . . 1 Machines Sabotaged . | . . . . . . Garrisons Compromised . | . . . . . . Overloaded Fab Kills . | . . . . . . Hacking | -11 -10 -10 -10 -9 -8 --------- Run | Scr Mat Min Exi Min Mat Machines Accessed 18 | . 8 . 1 1 8 Terminals 15 | . 7 . . 1 7 Fabricators . | . . . . . . Repair Stations . | . . . . . . Recycling Units 2 | . 1 . . . 1 Scanalyzers . | . . . . . . Garrison Access . | . . . . . . Total Hacks 57 | . 22 . 1 3 31 Successful 31 | . 11 . 1 . 19 Failed 26 | . 11 . . 3 12 Catastrophic 5 | . 1 . . 1 3 Database Lockouts . | . . . . . . Manual 40 | . 16 . 1 3 20 Terminals 53 | . 21 . . 3 29 Fabricators . | . . . . . . Repair Stations . | . . . . . . Recycling Units 3 | . 1 . . . 2 Scanalyzers . | . . . . . . Garrison Access . | . . . . . . Terminal Hacks 19 | . 7 . 1 . 11 Part Schematic 1 | . . . . . 1 Robot Analysis 5 | . 3 . . . 2 Prototype ID Bank 3 | . 1 . . . 2 Terminal Index 1 | . . . . . 1 Unreport Threat 1 | . . . . . 1 Locate Traps 5 | . 3 . . . 2 Recall Reinforcements 1 | . . . . . 1 Hauler Manifests 1 | . . . . . 1 EX-Prototype ID Bank 1 | . . . 1 . . Fabricator Hacks . | . . . . . . Repair Station Hacks . | . . . . . . Recycling Unit Hacks . | . . . . . . Scanalyzer . | . . . . . . Garrison Access Hacks . | . . . . . . Unauthorized Hacks 12 | . 4 . . . 8 Terminals 10 | . 3 . . . 7 Track 3 | . 1 . . . 2 Assimilate 1 | . . . . . 1 Botnet 5 | . 2 . . . 3 Operators 1 | . . . . . 1 Fabricators . | . . . . . . Repair Stations . | . . . . . . Recycling Units 2 | . 1 . . . 1 Recyclers 2 | . 1 . . . 1 Scanalyzers . | . . . . . . Garrison Access . | . . . . . . Data Cores Recovered . | . . . . . . Used . | . . . . . . Hacking Detections 16 | . 7 . . 1 8 Full Trace Events . | . . . . . . Feedback Events . | . . . . . . Feedback Blocked . | . . . . . . Robot Schematics Acquired . | . . . . . . Robots Built . | . . . . . . Authchips . | . . . . . . Time . | . . . . . . Total Robot Build Rating . | . . . . . . Part Schematics Acquired 1 | . . . . . 1 Parts Built . | . . . . . . Authchips . | . . . . . . Time . | . . . . . . Total Part Build Rating . | . . . . . . Parts Repaired . | . . . . . . Time . | . . . . . . Parts Recycled . | . . . . . . Recycled Matter . | . . . . . . Retrieved Matter . | . . . . . . Retrieved Components . | . . . . . . Parts Scanalyzed . | . . . . . . Part Schematics Acquired . | . . . . . . Parts Damaged . | . . . . . . Bothacking | -11 -10 -10 -10 -9 -8 ------------ Run | Scr Mat Min Exi Min Mat Used RIF Installer . | . . . . . . Robots Hacked . | . . . . . . Non-combat . | . . . . . . Combat . | . . . . . . Robot Hacks Applied . | . . . . . . Relay Couplers Released . | . . . . . . Fabnet Peak Effective % . | . . . . . . Robots Rewired . | . . . . . . Allies Hacked . | . . . . . . Hacks Repelled . | . . . . . . Allies | -11 -10 -10 -10 -9 -8 -------- Run | Scr Mat Min Exi Min Mat Total Allies 2 | . . 2 . . . Largest Group 2 | . . 2 1 . . Highest-Rated Group 42 | . . 42 31 . . Highest-Rated Ally 31 | . . 31 31 . . Total Orders . | . . . . . . Ally Attacks . | . . . . . . Total Damage . | . . . . . . Kills . | . . . . . . Allies Corrupted . | . . . . . . Allies Melted . | . . . . . . Intel | -11 -10 -10 -10 -9 -8 ------- Run | Scr Mat Min Exi Min Mat Robot Analysis Total 5 | . 3 . . . 2 Derelict Logs Recovered 3 | . . 1 . 2 . Drone Launches . | . . . . . . Drone Recoveries . | . . . . . . Exploration | -11 -10 -10 -10 -9 -8 ------------- Run | Scr Mat Min Exi Min Mat Turns Passed 3395 | 65 489 214 279 233 2115 Spaces Moved 2187 | 51 442 205 278 179 1032 Core 14 | 14 . . . . . Treads 1001 | . . . . . 1001 Legs . | . . . . . . Wheels 1172 | 37 442 205 278 179 31 Hover . | . . . . . . Flight . | . . . . . . Fastest Speed 50 | 50 80 95 95 110 101 Average Speed 127 | 71 83 95 96 110 167 Slowest Speed 170 | 80 95 95 110 110 170 Overloaded Moves . | . . . . . . Propulsion Burnouts . | . . . . . . Robots Hopped . | . . . . . . Cave-ins Triggered . | . . . . . . Exploration Rate (%) 55 | 4 86 58 64 36 84 Regions Visited 5 Branch Regions 3 Pre-discovered Areas . | . . . . . . Known Exits Taken 2 | . . . 1 1 . Unknown Exits Taken 3 | 1 1 1 . . . Scrap Searched 1 | . . . . 1 . Spaces Dug 9 | . 1 . . . 8 Terrain Destroyed 42 | . 1 1 . . 40 Melee . | . . . . . . Projectile 10 | . 1 1 . . 8 AOE 32 | . . . . . 32 Terrain Rammed . | . . . . . . Walls Destroyed . | . . . . . . Machines Disabled . | . . . . . . Actions | -11 -10 -10 -10 -9 -8 --------- Run | Scr Mat Min Exi Min Mat Total 2527 | 69 501 218 295 202 1242 Wait 37 | . 1 2 . . 34 Move 2182 | 50 441 204 277 178 1032 Hop . | . . . . . . Pick Up 50 | 8 9 4 6 6 17 Fast Attach 15 | 5 . 1 . 3 6 Attach 15 | 2 2 . 1 1 9 Detach 6 | . . 1 . 2 3 Swap 38 | . 6 1 1 1 29 Drop 45 | . 7 2 10 3 23 Fire 131 | 4 35 3 . 7 82 Melee . | . . . . . . Ram 1 | . . . . 1 . Kick . | . . . . . . Crush 7 | . . . . . 7 Escape Stasis . | . . . . . . Rewire . | . . . . . . Trap . | . . . . . . Miscellaneous . | . . . . . . Route ------- -11/Scrapyard -10/Materials (discovered 4 exits: [*Mat x3] / [*Min]) -10/Mines (discovered 3 exits: [*Mat x2] / *Exi) -10/Exiles (discovered 2 exits: *Min x2) -9/Mines -8/Materials (discovered 2 exits: *Fac x2) History --------- Turn | Location | Event 12 | -11/Scrapyard | Discovered new exit (range 15) 66 | -11/Scrapyard | Entered Materials 183 | -10/Materials | Discovered new exit (range 11) 254 | -10/Materials | Discovered new exit (range 16) 316 | -10/Materials | Build established: Mutant 478 | -10/Materials | Discovered new exit (range 16) 541 | -10/Materials | Discovered new exit (range 12) 555 | -10/Materials | Entered Mines 572 | -10/Mines | Discovered new exit (range 9) 594 | -10/Mines | A weapon hastily lodged in a ceiling crevice suddenly fell to the ground 644 | -10/Mines | Discovered new exit (range 9) 738 | -10/Mines | Found a hidden stash of uninstalled traps 763 | -10/Mines | Deemed a non-threat by the Exiles lab entrance 763 | -10/Mines | Discovered new exit (range 5) 764 | -10/Mines | Assembled infested the area 769 | -10/Mines | Entered Exiles 769 | -10/Exiles | Accompanied by 1 ally 770 | -10/Exiles | Identified exit to Mines 793 | -10/Exiles | Met 8R-AWN 799 | -10/Exiles | Led the pair of lost Derelicts to a safe place 809 | -10/Exiles | Met EX-HEX 863 | -10/Exiles | Met EX-BIN 873 | -10/Exiles | Aligned with FarCom system 874 | -10/Exiles | Given EX-Vault access code 896 | -10/Exiles | Opened EX-Vault 904 | -10/Exiles | Found XL Autogun Array 909 | -10/Exiles | Found Chronowheel 914 | -10/Exiles | Found AWS/Gauss 960 | -10/Exiles | Warned to stay clear of 0b10 Research branches 988 | -10/Exiles | Met EX-DEC 1048 | -10/Exiles | Stole three prototypes: Chronowheel, AWS/Gauss, XL Autogun Array 1048 | -10/Exiles | Entered Mines 1070 | -9/Mines | Met a Derelict bent on vengeance 1079 | -9/Mines | Joined a pair of Derelicts in attacking an 0b10 outpost 1134 | -9/Mines | Identified exit to Materials 1281 | -9/Mines | Entered Materials 1281 | -8/Materials | Evolved 4 slots: Propulsion x1, Utility x2, Weapon x1 1282 | -8/Materials | Identified exit to Factory 2098 | -8/Materials | Build established: Skirmisher 3007 | -8/Materials | Discovered exit to Factory (range 16) 3396 | -8/Materials | Self-destructed Last Messages --------------- 02969_ Slug penetrates G-47 Trooper. 02972_ G-47 Trooper destroyed. 02975_ Dropped Mining Laser. 02977_ Acquired 49 matter. 02980_ Acquired Katana. 02983_ Acquired 28 matter. 03007_ EXIT=FOUND: FACTORY 03034_ W-25 Informer sends out distress signal. 03049_ Crushed M-13 Machinist. 03049_ M-13 Machinist destroyed. 03134_ Dropped Arm. Treads. 03155_ W-25 Informer sends out distress signal. 03156_ Slug penetrates Wall. 03175_ Crushed K-01 Serf. 03175_ K-01 Serf destroyed. 03197_ Slammed into O-16 Technician. 03336_ Dropped Mni. Grenade Launcher. 03336_ Acquired Imp. Grenade Launcher. 03354_ ALERT: Suspicious intruders detected, dispatching Specialist reinforcements to area. Map ----- +----------------------------------------------------+ | | | | | | | | | ???????????????????????????#?????####??#??### | | ????????????????????????????????#?#?##?###??# | | ?????????????????????#?????????#???#?###????# | | ?????????????????????????#???#?#???###?#???## | | ???????????????????????????? ? ##??#####??## | | ?????????????????????????????? ?? ? ? ? ? | | ??????????????????????????????? ?#???## ##### | | ??????#??????????????????#""? ###??## # ### | | ???????????##?#???? ???#??"??? ??#?### | | ????????#?????#?????? ?#?#????? ????# # | | ?#??#?????##?#???? #######+####### # | | ?????##???##?? ?? ![! * # | | ????????##?? H ?? ![% = !+ ! | | ??????????##? ?? =!! = = | | #????#????#??#?+???###+######+####### # | | ??????#?????? ?? ??#? ??#??? #### # | | ??#?#???#??#?? ? ????? ? ?# ? ??###### ## | | #??????#?#???""??"?? "?" ? "" ?"?#?###?###? | | ??#?????#????"??"? ? "?? # "?S"" #?####?### | | ???#??##???# ??"?" ? "?" ??"""? ########## | | #????##?##################?#################? | | ??#??##?#! @##?#??#?##?#####?####### | | ??##??#?# """" """" #??###?####?############ | | #??#??#?# """" """" ##?##################### | | ???#?#?##[ """" """" ##?# + ############ | | ??####### #### # ]############ | | ?####?#?#######+######### # """ #??######### | | ???? # ? # # + """ #### ## | | #?#?#?## #??## ######## # """ ##?# ## | | ???##? ??# ####?### # #### ==!==## | | ?### ? ## ##??#?## #########?# == =!## | | ##?##### #?### ###?#### ###?####### =!!%!## | | ##?## #### #?#?### ########### !!==*## | | ###?# #### ####### ##############+#### | | ?#### ##?# #?#####+####### = + | | #####+## #### #### ##### # | | # # #### #### """ !##### """ # | | # """ # ###### ###### """ ##### """ # | | # """ + ###### ###### """ /##### """ !# ##+# | | # """ #[#?#### ###### """ ##### # # | | # ]# #### #### =#########+## #! ! | | # """ # r "" ######+############ # | | # """ + T o # | | # """ # ###### # ! | | # ### ## ###### ##"# | | # """ [### ### ####### ### | +----------------------------------------------------+ Best States ------------- Heat Dissipation 45 Energy Generation 14 Energy Capacity 280 Matter Stores 300 Matter Capacity 300 Sight Range 16 Terrain Scan Range 16 Terrain Scan Density 85 Evasion (%) 50 Recoil Reduction 3 Salvage Targeting 1 Item Schematics ----------------- Imp. Sensor Array | -8/Materials | Hacked Robot Schematics ------------------ None Fabricated ------------ Nothing Alien Tech Used ----------------- None Achievements -------------- None Challenges ------------ None Game ------ Seed FlightAlphaFemtoactuators Manual? 0 Play Time 00:38:47 Cumulative 659.7 hours Start 2022.05.28 @ 18:28:55 End 2022.05.28 @ 21:57:05 Sessions 3 Manual Loads 0 Difficulty Rogue Special Mode None Game No. 345 Rogue 218 Adventurer 125 Explorer 2 Win Type - Total 72 Types 63/3/3/1/1/0/0/0/1 Lore% 76 Gallery% 87 Achievement% 71 Wizard Run 0 Options --------- ASCII 0 Keyboard 1 Movement Numpad Keybinds 0 Fullscreen 1 Font 36/TerminusFine Map View 76x50 Tactical HUD 1 Map Filters NONE Filters NONE Steam 1 RUN: c00b5453-198e-45f0-8471-4c4e7649659f